fUST/lending_fUST_20240826
["ID","MTS","AMOUNT","RATE_DAILY","PERIOD"]
[336046058,1724680250635,-151.0,0.00012168,2]
[336046060,1724680250645,-730.459397,0.00012168,2]
[336046062,1724680250656,-500.0,0.00012168,2]
[336046064,1724680250669,-730.459397,0.00012168,2]
[336046066,1724680250678,-500.0,0.00012168,2]
[336046068,1724680250688,-517.62,0.00012168,2]
[336046070,1724680250697,-500.0,0.00012168,2]
[336046072,1724680250707,-500.0,0.00012168,2]
[336046074,1724680250717,-854.43,0.00012168,2]
[336046076,1724680250727,-500.0,0.00012168,2]
[336046078,1724680250738,-500.0,0.00012168,2]
[336046081,1724680250749,-575.29,0.00012168,2]
[336046083,1724680250759,-500.0,0.00012168,2]
[336046085,1724680250768,-802.227793,0.00012168,2]
[336046087,1724680250778,-1001.42,0.00012168,2]
[336046089,1724680250787,-802.227793,0.00012168,2]
[336046091,1724680250797,-500.0,0.00012168,2]
[336046093,1724680250806,-1129.99,0.00012168,2]
[336046095,1724680250816,-500.0,0.00012168,2]
[336046097,1724680250826,-500.0,0.00012168,2]
[336046099,1724680250835,-298.76,0.00012168,2]
[336046101,1724680250846,-350.5488516,0.00012168,2]
[336046103,1724680250857,-296.56,0.00012168,2]
[336046105,1724680250867,-151.0,0.00012168,2]
[336046107,1724680250878,-712.0,0.00012168,2]
[336046109,1724680250888,-854.72,0.00012168,2]
[336046112,1724680250899,-776.87,0.00012168,2]
[336046114,1724680250909,-281.350378,0.00012168,2]
[336046116,1724680250919,-281.350378,0.00012168,2]
[336046118,1724680250930,-500.0,0.00012168,2]
[336046120,1724680250940,-500.0,0.00012168,2]
[336046122,1724680250949,-500.0,0.00012168,2]
[336046124,1724680250960,-1271.71,0.00012168,2]
[336046126,1724680250972,-500.0,0.00012168,2]
[336046128,1724680250984,-3047.529885,0.00012168,2]
[336046130,1724680250993,-500.0,0.00012168,2]
[336046159,1724680251256,-500.0,0.00012168,2]
[336046161,1724680251268,-3047.529885,0.00012168,2]
[336046163,1724680251278,-500.0,0.00012168,2]
[336046165,1724680251288,-500.0,0.00012168,2]
[336046167,1724680251297,-601.31,0.00012168,2]
[336046169,1724680251306,-500.0,0.00012168,2]
[336046171,1724680251316,-770.92,0.00012168,2]
[336046173,1724680251325,-500.0,0.00012168,2]
[336046175,1724680251335,-500.0,0.00012168,2]
[336046177,1724680251344,-500.0,0.00012168,2]
[336046179,1724680251353,-500.0,0.00012173,2]
[336046181,1724680251362,-500.0,0.00012173,2]
[336046183,1724680251371,-500.0,0.00012173,2]
[336046185,1724680251381,-450.16806322,0.00012173,2]
[336046187,1724680251391,-11897.06987534,0.00012189,2]
[336046189,1724680251401,-130817.79704465,0.00012197,5]
[336046191,1724680251411,-2838.341743,0.00012197,2]
[336046193,1724680251420,-2838.341743,0.00012197,2]
[336046195,1724680251429,-1482.524992,0.00012197,2]
[336046197,1724680251439,-1482.524992,0.00012197,2]
[336046199,1724680251448,-284.04085,0.00012197,2]
[336046201,1724680251458,-284.04085,0.00012197,2]
[336046203,1724680251467,-1477.038172,0.00012197,2]
[336046205,1724680251477,-1234.062039,0.00012197,2]
[336046208,1724680251487,-1477.038172,0.00012197,2]
[336046210,1724680251496,-1234.062039,0.00012197,2]
[336046211,1724680251505,-281.350378,0.00012197,2]
[336046214,1724680251515,-281.350378,0.00012197,2]
[336046216,1724680251525,-2868.509936,0.00012197,2]
[336046218,1724680251534,-2868.509936,0.00012197,2]
[336046220,1724680251543,-3047.529885,0.00012197,2]
[336046222,1724680251552,-3047.529885,0.00012197,2]
[336046223,1724680251561,-500.0,0.00012204,2]
[336046225,1724680251570,-500.0,0.00012204,2]
[336046228,1724680251580,-151.0,0.00012204,2]
[336046230,1724680251589,-908.48,0.00012204,2]
[336046232,1724680251598,-151.0,0.00012204,2]
[336046234,1724680251607,-151.0,0.00012205,2]
[336046236,1724680251617,-151.0,0.00012205,2]
[336046238,1724680251626,-730.459397,0.00012205,2]
[336046240,1724680251637,-730.459397,0.00012205,2]
[336046242,1724680251647,-802.227793,0.00012205,2]
[336046244,1724680251659,-802.227793,0.00012205,2]
[336046246,1724680251669,-500.0,0.00012207,2]
[336046248,1724680251679,-500.0,0.00012207,2]
[336046250,1724680251689,-500.0,0.00012207,2]
[336046252,1724680251699,-500.0,0.00012207,2]
[336046254,1724680251708,-500.57871281,0.00012207,2]
[336046256,1724680251718,-500.0,0.00012207,2]
[336046258,1724680251727,-500.0,0.00012207,2]
[336046260,1724680251737,-500.0,0.00012207,2]
[336046262,1724680251746,-500.0,0.00012207,2]
[336046264,1724680251756,-500.0,0.00012207,2]
[336046266,1724680251765,-500.0,0.00012207,2]
[336046268,1724680251774,-497.03208302,0.00012207,2]
[336046270,1724680251785,-504.03332207,0.00012207,2]
[336046272,1724680251794,-500.0,0.00012207,2]
[336046275,1724680251805,-699.28,0.00012207,2]
[336046277,1724680251814,-500.0,0.00012207,2]
[336046279,1724680251824,-500.0,0.00012207,2]
[336046281,1724680251834,-1013.35,0.00012207,2]
[336046283,1724680251843,-500.0,0.00012207,2]
[336046285,1724680251852,-500.0,0.00012207,2]
[336046287,1724680251862,-500.0,0.00012207,2]
[336046289,1724680251871,-500.0,0.00012207,2]
[336046291,1724680251880,-790.14,0.00012207,2]
[336046293,1724680251890,-500.0,0.00012207,2]
[336046295,1724680251902,-500.0,0.00012207,2]
[336046297,1724680251912,-518.93,0.00012207,2]
[336046299,1724680251922,-500.0,0.00012207,2]
[336046301,1724680251932,-266.65447245,0.00012207,2]
[336046303,1724680251944,-500.0,0.00012207,2]
[336046305,1724680251954,-500.0,0.00012207,2]
[336046307,1724680251964,-500.0,0.00012207,2]
[336046310,1724680251978,-541.16942906,0.00012207,2]
[336046312,1724680251988,-519.52,0.00012207,2]
[336046314,1724680251997,-500.0,0.00012207,2]
[336046316,1724680252006,-824.84,0.00012207,2]
[336046318,1724680252016,-500.0,0.00012207,2]
[336046320,1724680252025,-500.0,0.00012207,2]
[336046322,1724680252034,-500.0,0.00012207,2]
[336046324,1724680252044,-551.548176,0.00012207,2]
[336046326,1724680252054,-500.0,0.00012207,2]
[336046328,1724680252064,-500.0,0.00012207,2]
[336046330,1724680252073,-592.6,0.00012207,2]
[336046332,1724680252082,-151.0,0.00012207,2]
[336046334,1724680252091,-500.0,0.00012207,2]
[336046336,1724680252100,-500.0,0.00012207,2]
[336046338,1724680252109,-500.0,0.00012207,2]
[336046340,1724680252118,-506.19896269,0.00012207,2]
[336046342,1724680252127,-219.575249,0.00012207,2]
[336046344,1724680252136,-2800.208892,0.00012207,2]
[336046346,1724680252145,-219.575249,0.00012207,2]
[336046348,1724680252158,-2800.208892,0.00012207,2]
[336046350,1724680252167,-500.0,0.00012207,2]
[336046352,1724680252176,-500.0,0.00012207,2]
[336046354,1724680252185,-2041.868855,0.00012207,2]
[336046356,1724680252194,-500.0,0.00012207,2]
[336046358,1724680252204,-2493.43595,0.00012207,2]
[336046360,1724680252213,-500.0,0.00012207,2]
[336046362,1724680252223,-2493.43595,0.00012207,2]
[336046364,1724680252232,-500.46,0.00012207,2]
[336046366,1724680252241,-328.30874,0.00012207,2]
[336046368,1724680252251,-500.0,0.00012207,2]
[336046370,1724680252260,-328.30874,0.00012207,2]
[336046372,1724680252269,-500.0,0.00012207,2]
[336046374,1724680252278,-2838.341743,0.00012207,2]
[336046376,1724680252288,-2838.341743,0.00012207,2]
[336046379,1724680252297,-506.39592459,0.00012207,2]
[336046380,1724680252307,-2111.23,0.00012207,2]
[336046382,1724680252316,-500.0,0.00012207,2]
[336046384,1724680252324,-1482.524992,0.00012207,2]
[336046386,1724680252334,-1482.524992,0.00012207,2]
[336046388,1724680252343,-500.0,0.00012207,2]
[336046391,1724680252352,-500.0,0.00012207,2]
[336046393,1724680252362,-284.04085,0.00012207,2]
[336046395,1724680252370,-284.04085,0.00012207,2]
[336046397,1724680252380,-500.0,0.00012207,2]
[336046399,1724680252391,-986.18,0.00012207,2]
[336046401,1724680252403,-1477.038172,0.00012207,2]
[336046403,1724680252413,-1234.062039,0.00012207,2]
[336046405,1724680252422,-1477.038172,0.00012207,2]
[336046407,1724680252430,-1234.062039,0.00012207,2]
[336046409,1724680252442,-500.0,0.00012207,2]
[336046411,1724680252452,-500.0,0.00012207,2]
[336046413,1724680252463,-2868.509936,0.00012207,2]
[336046415,1724680252472,-2868.509936,0.00012207,2]
[336046417,1724680252481,-500.0,0.00012214,2]
[336046419,1724680252491,-500.0,0.00012214,2]
[336046421,1724680252500,-163.827384,0.00012214,2]
[336046424,1724680252512,-151.0,0.00012214,2]
[336046426,1724680252522,-972.953558,0.00012214,2]
[336046428,1724680252533,-972.953558,0.00012214,2]
[336046430,1724680252542,-1147.034658,0.00012214,2]
[336046432,1724680252553,-1147.034658,0.00012214,2]
[336046435,1724680252565,-151.0,0.00012214,2]
[336046437,1724680252575,-500.0,0.00012214,2]
[336046439,1724680252585,-500.0,0.00012214,2]
[336046441,1724680252594,-2616.285549,0.00012214,2]
[336046443,1724680252603,-2616.285549,0.00012214,2]
[336046445,1724680252614,-908.48,0.00012214,2]
[336046447,1724680252623,-908.48,0.00012214,2]
[336046449,1724680252632,-500.0,0.00012215,2]
[336046451,1724680252643,-500.0,0.00012215,2]
[336046453,1724680252655,-500.0,0.00012215,2]
[336046455,1724680252664,-500.0,0.00012215,2]
[336046457,1724680252674,-790.14,0.00012215,2]
[336046459,1724680252683,-790.14,0.00012215,2]
[336046461,1724680252693,-151.0,0.00012215,2]
[336046463,1724680252702,-151.0,0.00012215,2]
[336046465,1724680252712,-151.0,0.00012215,2]
[336046467,1724680252721,-151.0,0.00012215,2]
[336046469,1724680252730,-500.46,0.00012215,2]
[336046471,1724680252740,-500.46,0.00012215,2]
[336046473,1724680252749,-151.0,0.00012215,2]
[336046475,1724680252759,-500.0,0.00012215,2]
[336046477,1724680252768,-500.0,0.00012215,2]
[336046479,1724680252777,-2111.23,0.00012215,2]
[336046481,1724680252787,-2111.23,0.00012215,2]
[336046483,1724680252796,-908.48,0.00012215,2]
[336046485,1724680252805,-908.48,0.00012215,2]
[336046487,1724680252814,-500.0,0.00012216,2]
[336046489,1724680252823,-508.18806498,0.00012216,2]
[336046491,1724680252834,-500.0,0.00012216,2]
[336046492,1724680252843,-500.0,0.00012216,2]
[336046493,1724680252852,-500.0,0.00012216,2]
[336046494,1724680252862,-500.0,0.00012216,2]
[336046495,1724680252871,-500.0,0.00012216,2]
[336046496,1724680252880,-500.0,0.00012216,2]
[336046497,1724680252889,-500.88151213,0.00012216,2]
[336046498,1724680252898,-500.0,0.00012216,2]
[336046499,1724680252909,-514.41696992,0.00012216,2]
[336046500,1724680252918,-500.0,0.00012216,2]
[336046501,1724680252927,-500.33429615,0.00012216,2]
[336046502,1724680252936,-500.0,0.00012216,2]
[336046503,1724680252945,-500.0,0.00012216,2]
[336046504,1724680252954,-518.72962149,0.00012216,2]
[336046505,1724680252964,-501.84087692,0.00012216,2]
[336046506,1724680252978,-500.0,0.00012216,2]
[336046507,1724680252987,-500.0,0.00012216,2]
[336046508,1724680252997,-500.0,0.00012216,2]
[336046509,1724680253006,-500.0,0.00012216,2]
[336046510,1724680253016,-500.0,0.00012216,2]
[336046511,1724680253025,-501.4283803,0.00012216,2]
[336046512,1724680253033,-500.0,0.00012216,2]
[336046513,1724680253043,-500.0,0.00012216,2]
[336046514,1724680253055,-500.0,0.00012216,2]
[336046515,1724680253065,-500.0,0.00012216,2]
[336046516,1724680253075,-500.0,0.00012216,2]
[336046517,1724680253084,-500.0,0.00012216,2]
[336046518,1724680253094,-500.0,0.00012216,2]
[336046519,1724680253104,-500.0,0.00012216,2]
[336046520,1724680253114,-500.0,0.00012216,2]
[336046521,1724680253124,-500.0,0.00012216,2]
[336046522,1724680253133,-770.03,0.00012216,2]
[336046523,1724680253144,-500.0,0.00012216,2]
[336046524,1724680253155,-704.1,0.00012216,2]
[336046525,1724680253164,-500.0,0.00012216,2]
[336046526,1724680253173,-500.0,0.00012216,2]
[336046527,1724680253181,-600.12454703,0.00012216,2]
[336046528,1724680253190,-764.45,0.00012216,2]
[336046529,1724680253199,-381.11290446,0.00012216,2]
[336046530,1724680253208,-790.39,0.00012216,2]
[336046531,1724680253218,-1188.88,0.00012216,2]
[336046532,1724680253229,-790.14,0.00012216,2]
[336046533,1724680253238,-500.0,0.00012216,2]
[336046534,1724680253247,-790.14,0.00012216,2]
[336046535,1724680253257,-770.62,0.00012216,2]
[336046536,1724680253267,-698.59,0.00012216,2]
[336046537,1724680253276,-1029.37,0.00012216,2]
[336046538,1724680253285,-902.69,0.00012216,2]
[336046539,1724680253294,-289.472047,0.00012216,2]
[336046541,1724680253303,-398.966864,0.00012216,2]
[336046542,1724680253312,-909.61,0.00012216,2]
[336046544,1724680253321,-398.966864,0.00012216,2]
[336046546,1724680253330,-1682.533857,0.00012216,2]
[336046548,1724680253339,-1682.533857,0.00012216,2]
[336046549,1724680253348,-500.46,0.00012216,2]
[336046551,1724680253357,-500.46,0.00012216,2]
[336046553,1724680253367,-151.0,0.00012216,2]
[336046555,1724680253376,-2111.23,0.00012216,2]
[336046557,1724680253385,-2111.23,0.00012216,2]
[336046559,1724680253395,-151.0,0.00012216,2]
[336046561,1724680253406,-151.0,0.00012216,2]
[336046563,1724680253415,-730.459397,0.00012216,2]
[336046565,1724680253424,-730.459397,0.00012216,2]
[336046567,1724680253434,-802.227793,0.00012216,2]
[336046569,1724680253443,-802.227793,0.00012216,2]
[336046571,1724680253452,-151.0,0.00012216,2]
[336046573,1724680253461,-281.350378,0.00012216,2]
[336046575,1724680253470,-281.350378,0.00012216,2]
[336046577,1724680253479,-3047.529885,0.00012216,2]
[336046579,1724680253489,-3047.529885,0.00012216,2]
[336046581,1724680253498,-500.0,0.00012225,2]
[336046583,1724680253507,-2838.341743,0.00012225,2]
[336046585,1724680253516,-2838.341743,0.00012225,2]
[336046587,1724680253525,-500.0,0.00012225,2]
[336046589,1724680253534,-1482.524992,0.00012225,2]
[336046591,1724680253543,-1482.524992,0.00012225,2]
[336046593,1724680253553,-284.04085,0.00012225,2]
[336046595,1724680253562,-284.04085,0.00012225,2]
[336046597,1724680253572,-908.48,0.00012225,2]
[336046599,1724680253581,-1477.038172,0.00012225,2]
[336046601,1724680253590,-1234.062039,0.00012225,2]
[336046603,1724680253599,-1477.038172,0.00012225,2]
[336046605,1724680253609,-1234.062039,0.00012225,2]
[336046607,1724680253618,-2868.509936,0.00012225,2]
[336046609,1724680253627,-2868.509936,0.00012225,2]
[336046611,1724680253637,-500.0,0.00012226,2]
[336046613,1724680253646,-500.0,0.00012226,2]
[336046615,1724680253656,-500.0,0.00012226,2]
[336046617,1724680253666,-500.0,0.00012226,2]
[336046619,1724680253675,-500.0,0.00012226,2]
[336046621,1724680253684,-366.65,0.00012226,2]
[336046623,1724680253693,-790.14,0.00012226,2]
[336046625,1724680253703,-790.14,0.00012226,2]
[336046627,1724680253713,-790.14,0.00012226,2]
[336046629,1724680253722,-790.14,0.00012226,2]
[336046631,1724680253732,-790.14,0.00012226,2]
[336046633,1724680253741,-192.38569,0.00012226,2]
[336046635,1724680253750,-151.0,0.00012226,2]
[336046637,1724680253759,-219.575249,0.00012226,2]
[336046639,1724680253769,-2800.208892,0.00012226,2]
[336046641,1724680253778,-219.575249,0.00012226,2]
[336046643,1724680253787,-151.0,0.00012226,2]
[336046646,1724680253798,-2800.208892,0.00012226,2]
[336046647,1724680253807,-151.0,0.00012226,2]
[336046650,1724680253820,-2041.868855,0.00012226,2]
[336046652,1724680253829,-151.0,0.00012226,2]
[336046654,1724680253841,-189.330153,0.00012226,2]
[336046656,1724680253853,-2493.43595,0.00012226,2]
[336046659,1724680253865,-2493.43595,0.00012226,2]
[336046661,1724680253874,-500.46,0.00012226,2]
[336046663,1724680253883,-500.46,0.00012226,2]
[336046665,1724680253893,-500.46,0.00012226,2]
[336046667,1724680253905,-500.46,0.00012226,2]
[336046669,1724680253922,-500.46,0.00012226,2]
[336046671,1724680253931,-328.30874,0.00012226,2]
[336046673,1724680253941,-328.30874,0.00012226,2]
[336046675,1724680253950,-151.0,0.00012226,2]
[336046677,1724680253962,-500.0,0.00012226,2]
[336046679,1724680253979,-500.0,0.00012226,2]
[336046681,1724680253989,-2111.23,0.00012226,2]
[336046683,1724680253998,-2111.23,0.00012226,2]
[336046685,1724680254009,-2111.23,0.00012226,2]
[336046687,1724680254018,-2111.23,0.00012226,2]
[336046689,1724680254028,-2111.23,0.00012226,2]
[336046691,1724680254038,-908.48,0.00012226,2]
[336046693,1724680254048,-908.48,0.00012226,2]
[336046695,1724680254058,-500.0,0.00012227,2]
[336046697,1724680254067,-500.0,0.00012227,2]
[336046699,1724680254077,-553.98022768,0.00012227,2]
[336046701,1724680254086,-500.0,0.00012227,2]
[336046718,1724680254229,-500.0,0.00012227,2]
[336046720,1724680254255,-500.0,0.00012227,2]
[336046722,1724680254265,-560.61,0.00012227,2]
[336046723,1724680254274,-500.0,0.00012227,2]
[336046725,1724680254283,-500.0,0.00012227,2]
[336046727,1724680254292,-500.0,0.00012227,2]
[336046728,1724680254302,-331.70526957,0.00012227,2]
[336046730,1724680254311,-500.0,0.00012227,2]
[336046732,1724680254321,-904.55,0.00012227,2]
[336046734,1724680254331,-500.0,0.00012227,2]
[336046736,1724680254339,-500.0,0.00012227,2]
[336046738,1724680254349,-500.0,0.00012227,2]
[336046740,1724680254358,-500.0,0.00012227,2]
[336046742,1724680254367,-500.0,0.00012227,2]
[336046744,1724680254376,-871.31,0.00012227,2]
[336046746,1724680254386,-500.0,0.00012227,2]
[336046748,1724680254395,-500.25155923,0.00012227,2]
[336046750,1724680254408,-502.57012797,0.00012227,2]
[336046752,1724680254417,-500.0,0.00012227,2]
[336046754,1724680254426,-229.87600447,0.00012227,2]
[336046756,1724680254437,-500.0,0.00012227,2]
[336046758,1724680254445,-871.64,0.00012227,2]
[336046760,1724680254455,-514.07150007,0.00012227,2]
[336046762,1724680254464,-500.0,0.00012227,2]
[336046764,1724680254473,-500.0,0.00012227,2]
[336046766,1724680254482,-500.0,0.00012227,2]
[336046768,1724680254492,-500.0,0.00012227,2]
[336046770,1724680254501,-500.0,0.00012227,2]
[336046772,1724680254510,-500.0,0.00012227,2]
[336046774,1724680254519,-500.0,0.00012227,2]
[336046776,1724680254528,-500.0,0.00012227,2]
[336046778,1724680254537,-500.0,0.00012227,2]
[336046780,1724680254546,-500.0,0.00012227,2]
[336046782,1724680254555,-500.0,0.00012227,2]
[336046784,1724680254564,-527.94,0.00012227,2]
[336046786,1724680254573,-500.0,0.00012227,2]
[336046788,1724680254583,-500.0,0.00012227,2]
[336046790,1724680254592,-220.76118149,0.00012227,2]
[336046792,1724680254602,-1004.31,0.00012227,2]
[336046794,1724680254611,-500.0,0.00012227,2]
[336046796,1724680254620,-723.41,0.00012227,2]
[336046798,1724680254630,-1074.74,0.00012227,2]
[336046800,1724680254640,-1526.82,0.00012227,2]
[336046802,1724680254649,-500.0,0.00012227,2]
[336046804,1724680254660,-500.0,0.00012227,2]
[336046806,1724680254670,-500.0,0.00012227,2]
[336046808,1724680254679,-500.0,0.00012227,2]
[336046810,1724680254688,-759.18,0.00012227,2]
[336046812,1724680254698,-500.0,0.00012227,2]
[336046814,1724680254707,-500.17557677,0.00012227,2]
[336046816,1724680254719,-907.61,0.00012227,2]
[336046819,1724680254728,-500.0,0.00012227,2]
[336046821,1724680254738,-500.0,0.00012227,2]
[336046823,1724680254747,-787.43,0.00012227,2]
[336046825,1724680254757,-500.0,0.00012227,2]
[336046827,1724680254766,-500.0,0.00012227,2]
[336046829,1724680254775,-500.0,0.00012227,2]
[336046831,1724680254784,-500.0,0.00012227,2]
[336046833,1724680254793,-620.87423003,0.00012227,2]
[336046835,1724680254803,-500.0,0.00012227,2]
[336046837,1724680254812,-220.53781329,0.00012227,2]
[336046839,1724680254822,-500.0,0.00012227,2]
[336046841,1724680254831,-500.0,0.00012227,2]
[336046843,1724680254840,-506.5836502,0.00012227,2]
[336046845,1724680254850,-311.75022078,0.00012227,2]
[336046847,1724680254859,-500.06725319,0.00012227,2]
[336046849,1724680254868,-500.0,0.00012227,2]
[336046851,1724680254878,-500.0,0.00012227,2]
[336046853,1724680254888,-827.46,0.00012227,2]
[336046855,1724680254897,-500.0,0.00012227,2]
[336046857,1724680254908,-500.0,0.00012227,2]
[336046859,1724680254918,-500.0,0.00012227,2]
[336046861,1724680254927,-500.0,0.00012227,2]
[336046863,1724680254937,-500.0,0.00012227,2]
[336046865,1724680254947,-500.0,0.00012227,2]
[336046867,1724680254955,-500.0,0.00012227,2]
[336046869,1724680254965,-500.0,0.00012227,2]
[336046871,1724680254978,-224.6783368,0.00012227,2]
[336046872,1724680254987,-500.0,0.00012227,2]
[336046874,1724680254996,-500.0,0.00012227,2]
[336046877,1724680255006,-500.0,0.00012227,2]
[336046879,1724680255017,-500.0,0.00012227,2]
[336046880,1724680255026,-500.0,0.00012227,2]
[336046882,1724680255035,-500.0,0.00012227,2]
[336046884,1724680255044,-500.0,0.00012227,2]
[336046886,1724680255055,-500.0,0.00012227,2]
[336046888,1724680255064,-507.22816227,0.00012227,2]
[336046890,1724680255074,-500.0,0.00012227,2]
[336046892,1724680255084,-782.91,0.00012227,2]
[336046894,1724680255093,-500.0,0.00012227,2]
[336046896,1724680255102,-500.0,0.00012227,2]
[336046898,1724680255111,-500.0,0.00012227,2]
[336046900,1724680255121,-500.0,0.00012227,2]
[336046902,1724680255130,-500.0,0.00012227,2]
[336046904,1724680255139,-500.0,0.00012227,2]
[336046906,1724680255148,-151.0,0.00012227,2]
[336046908,1724680255159,-398.966864,0.00012227,2]
[336046910,1724680255168,-398.966864,0.00012227,2]
[336046912,1724680255177,-1682.533857,0.00012227,2]
[336046914,1724680255186,-1682.533857,0.00012227,2]
[336046916,1724680255195,-151.0,0.00012227,2]
[336046918,1724680255205,-151.0,0.00012227,2]
[336046919,1724680255214,-972.953558,0.00012227,2]
[336046920,1724680255224,-972.953558,0.00012227,2]
[336046921,1724680255233,-1147.034658,0.00012227,2]
[336046922,1724680255243,-1147.034658,0.00012227,2]
[336046923,1724680255252,-241.201416,0.00012227,2]
[336046924,1724680255262,-151.0,0.00012227,2]
[336046925,1724680255271,-2616.285549,0.00012227,2]
[336046926,1724680255281,-2616.285549,0.00012227,2]
[336046927,1724680255290,-151.0,0.00012227,2]
[336046928,1724680255299,-281.350378,0.00012227,2]
[336046929,1724680255309,-281.350378,0.00012227,2]
[336046930,1724680255318,-3047.529885,0.00012227,2]
[336046931,1724680255328,-3047.529885,0.00012227,2]
[336046932,1724680255337,-500.0,0.00012229,2]
[336046933,1724680255347,-790.14,0.00012229,2]
[336046935,1724680255356,-500.46,0.00012229,2]
[336046937,1724680255365,-151.0,0.00012229,2]
[336046939,1724680255375,-2111.23,0.00012229,2]
[336046941,1724680255384,-151.0,0.00012229,2]
[336046943,1724680255394,-730.459397,0.00012229,2]
[336046945,1724680255404,-730.459397,0.00012229,2]
[336046947,1724680255413,-802.227793,0.00012229,2]
[336046949,1724680255423,-802.227793,0.00012229,2]
[336046951,1724680255432,-500.0,0.00012238,2]
[336046952,1724680255441,-790.14,0.00012238,2]
[336046954,1724680255450,-500.46,0.00012238,2]
[336046956,1724680255459,-2111.23,0.00012238,2]
[336046959,1724680255468,-500.0,0.00012239,2]
[336046960,1724680255478,-790.14,0.00012239,2]
[336046962,1724680255487,-500.46,0.00012239,2]
[336046965,1724680255496,-288.51505538,0.00012239,2]
[336046967,1724680255505,-2111.23,0.00012239,2]
[336046969,1724680255515,-908.48,0.00012239,2]
[336046971,1724680255524,-399.440063,0.0001224,2]
[336046973,1724680255533,-399.440063,0.0001224,2]
[336046975,1724680255545,-151.0,0.0001224,2]
[336046977,1724680255555,-211.142925,0.0001224,2]
[336046979,1724680255565,-211.142925,0.0001224,2]
[336046981,1724680255575,-790.14,0.00012247,2]
[336046983,1724680255584,-500.46,0.00012247,2]
[336046985,1724680255594,-2111.23,0.00012247,2]
[336046987,1724680255603,-500.0,0.00012248,2]
[336046989,1724680255612,-790.14,0.00012248,2]
[336046991,1724680255622,-790.14,0.00012248,2]
[336046993,1724680255632,-790.14,0.00012248,2]
[336046995,1724680255641,-219.575249,0.00012248,2]
[336046997,1724680255651,-2800.208892,0.00012248,2]
[336046999,1724680255662,-219.575249,0.00012248,2]
[336047001,1724680255671,-2800.208892,0.00012248,2]
[336047004,1724680255681,-2041.868855,0.00012248,2]
[336047006,1724680255691,-2493.43595,0.00012248,2]
[336047008,1724680255700,-2493.43595,0.00012248,2]
[336047010,1724680255710,-500.46,0.00012248,2]
[336047012,1724680255719,-500.46,0.00012248,2]
[336047013,1724680255730,-500.46,0.00012248,2]
[336047016,1724680255740,-328.30874,0.00012248,2]
[336047018,1724680255750,-328.30874,0.00012248,2]
[336047020,1724680255760,-2838.341743,0.00012248,2]
[336047022,1724680255770,-2838.341743,0.00012248,2]
[336047024,1724680255780,-2111.23,0.00012248,2]
[336047026,1724680255789,-2111.23,0.00012248,2]
[336047028,1724680255798,-2111.23,0.00012248,2]
[336047029,1724680255808,-1482.524992,0.00012248,2]
[336047031,1724680255817,-1482.524992,0.00012248,2]
[336047033,1724680255826,-284.04085,0.00012248,2]
[336047035,1724680255836,-284.04085,0.00012248,2]
[336047037,1724680255845,-1477.038172,0.00012248,2]
[336047039,1724680255855,-1234.062039,0.00012248,2]
[336047041,1724680255865,-1477.038172,0.00012248,2]